bitfinex-derivatives/quotes_ETHF0:USTF0_20241008
["timestamp","ask_amount","ask_price","bid_price","bid_amount"]
[1728407491017,0.41133,2432.3,2431.7,0.41142]
[1728407491209,0.41134,2432.2,2431.9,0.41138]
[1728407491406,41.82818,2432.6,2431.5,1.02863]
[1728407491407,3.2078,2433.2,2432.1,7.1578]
[1728407491616,0.20934037,2434.1,2432.2,0.4162]
[1728407491617,3.2078,2433.3,2432.2,0.4162]
[1728407491809,0.4237,2432.9,2432.6,0.41126]
[1728407492210,0.4237,2432.9,2432.7,0.41124]
[1728407492412,0.4237,2432.9,2432.6,0.41125]
[1728407492813,0.4237,2432.9,2432.7,0.41124]
[1728407493009,41.2043,2433.2,2432.4,3.2078]
[1728407493010,40.8,2433.2,2432.4,3.2078]
[1728407493208,3.2078,2433.6,2432.7,3.2078]
[1728407493417,3.2078,2433.6,2432.8,3.95]
[1728407493718,0.207,2434.2,2433.0,3.2078]
[1728407493719,3.2078,2433.5,2433.0,3.2078]
[1728407494111,3.2078,2433.5,2433.1,1.02795]
[1728407494313,41.2055,2433.8,2433.1,1.02795]
[1728407494516,41.2055,2433.8,2433.2,0.8082]
[1728407494722,41.2055,2433.8,2433.3,3.2078]
[1728407494924,41.2055,2433.8,2433.2,1.83609]
[1728407495316,41.2055,2433.8,2433.2,0.8082]
[1728407495915,41.2055,2433.8,2433.5,0.4111]
[1728407496117,41.2055,2433.8,2433.2,0.8082]
[1728407496418,41.2055,2433.8,2430.2,3.17887337]
[1728407496419,0.41121,2433.0,2432.5,0.3944]
[1728407496622,0.41112,2433.5,2433.1,0.41117]
[1728407496919,3.2078,2433.4,2432.7,3.2078]
[1728407497113,3.61893,2433.4,2433.1,0.41117]
[1728407497417,0.41115,2433.3,2432.9,0.4112]
[1728407497622,0.41115,2433.3,2432.8,0.406]
[1728407497820,3.2078,2433.4,2433.0,0.41119]
[1728407498014,3.61894,2433.4,2433.1,0.41118]
[1728407498521,3.2078,2433.4,2432.8,0.406]
[1728407498716,0.41115,2433.3,2433.0,0.41119]
[1728407498918,0.41121,2433.0,2432.6,0.41125]
[1728407499110,0.41122,2432.9,2432.6,0.41125]
[1728407499713,3.2078,2433.0,2432.6,0.41126]
[1728407499909,0.41123,2432.8,2432.5,0.80567]
[1728407500115,4.23581,2433.0,2432.3,3.2078]
[1728407500320,0.41124,2432.8,2432.5,0.41128]
[1728407500920,0.41124,2432.8,2432.3,3.2078]
[1728407501220,0.41124,2432.8,2432.5,0.41126]
[1728407501621,4.23581,2433.0,2432.3,3.2078]
[1728407501818,4.65864,2432.7,2432.3,0.4113]
[1728407502010,0.41129,2432.5,2432.3,0.4113]
[1728407502214,0.41128,2432.6,2432.1,0.3893]
[1728407502514,0.41128,2432.5,2432.4,0.41129]
[1728407503014,0.41124,2432.8,2432.6,0.41125]
[1728407503216,4.2358,2433.0,2432.4,3.2078]
[1728407503417,0.41123,2432.8,2432.7,0.41124]
[1728407503612,41.21122,2432.9,2432.7,0.41124]
[1728407503923,0.41122,2432.9,2432.7,0.41124]
[1728407504738,44.0078,2433.0,2432.7,0.41124]
[1728407505025,44.41901,2433.0,2432.7,0.41124]
[1728407505321,41.21121,2433.0,2432.7,0.41124]
[1728407505522,0.41122,2432.9,2432.7,0.41124]
[1728407506026,40.8,2433.0,2432.7,0.41124]
[1728407506027,41.21121,2433.0,2432.7,0.41124]
[1728407506320,41.21121,2433.0,2432.4,4.64844]
[1728407506525,44.0078,2433.0,2432.4,3.6202]
[1728407506714,41.2112,2433.0,2432.8,0.41122]
[1728407506911,41.2112,2433.0,2432.4,3.6202]
[1728407506912,0.4112,2433.0,2432.4,3.6202]
[1728407507114,3.2078,2433.1,2433.0,0.4112]
[1728407507315,3.2078,2433.1,2432.9,0.4112]
[1728407507520,3.2078,2433.1,2433.0,0.4112]
[1728407507819,3.2078,2433.1,2432.9,0.4112]
[1728407508013,3.2078,2433.1,2432.7,0.4025]
[1728407508220,3.2078,2433.1,2433.0,0.4112]
[1728407508522,0.41115,2433.3,2433.1,0.41117]
[1728407509025,0.41114,2433.4,2432.9,3.2078]
[1728407509225,0.41112,2433.5,2433.3,0.41114]
[1728407509525,0.41112,2433.5,2432.9,4.23583]
[1728407509721,0.41112,2433.5,2433.3,0.41114]
[1728407509914,0.3998,2433.7,2432.9,7.3174]
[1728407510115,0.81089,2433.7,2433.5,0.4111]
[1728407510917,0.81089,2433.7,2433.3,0.3984]
[1728407510918,0.3998,2433.7,2433.3,0.3984]
[1728407511118,0.4111,2433.6,2433.3,0.3984]
[1728407511328,0.3998,2433.7,2433.3,0.3984]
[1728407511516,0.4111,2433.6,2433.4,0.41112]
[1728407511717,0.4111,2433.6,2433.3,0.3984]
[1728407511718,0.41108,2433.7,2433.5,0.4111]
[1728407511917,41.21107,2433.8,2433.6,0.41108]
[1728407512126,40.8,2433.8,2433.3,0.3984]
[1728407512424,3.2078,2434.1,2433.3,1.42626]
[1728407512618,1.02757,2434.0,2433.3,0.3984]
[1728407512822,0.41108,2433.7,2433.5,0.4111]
[1728407513126,40.8,2433.9,2433.6,0.41108]
[1728407513426,0.41107,2433.8,2433.6,0.41108]
[1728407513624,3.2078,2434.1,2433.3,4.8384]
[1728407513831,0.41104,2434.0,2433.6,0.41109]
[1728407514028,44.0078,2434.5,2433.5,3.2078]
[1728407514325,0.41109,2433.6,2433.5,3.6189]
[1728407514529,1.02762,2433.9,2433.5,3.6189]
[1728407514530,0.41109,2433.7,2433.6,0.41109]
[1728407514732,0.41107,2433.8,2433.7,0.41107]
[1728407515029,0.41109,2433.7,2433.6,0.41109]
[1728407515235,0.41109,2433.7,2433.6,4.51989]
[1728407515419,0.41109,2433.7,2433.6,0.41109]
[1728407515618,0.41109,2433.7,2433.6,4.51989]
[1728407516225,1.02737,2434.5,2433.8,1.02765]
[1728407516529,3.2078,2435.0,2434.2,3.2078]
[1728407516530,4.23495,2435.0,2434.2,3.2078]
[1728407516731,3.2078,2434.7,2434.2,3.2078]
[1728407517030,0.41092,2434.6,2434.2,3.2078]
[1728407517331,0.41092,2434.7,2434.2,3.2078]
[1728407517527,40.8,2434.9,2434.2,3.2078]
[1728407517724,0.41092,2434.7,2434.4,0.41095]
[1728407518230,0.41093,2434.6,2434.4,0.41095]
[1728407518425,0.41092,2434.7,2434.4,0.41095]
[1728407518626,0.41096,2434.4,2434.2,0.41099]
[1728407518820,3.2078,2434.4,2433.9,0.8268]
[1728407519025,3.2078,2434.4,2433.7,0.41106]
[1728407519026,0.41104,2434.0,2433.7,0.41106]
[1728407519324,0.41104,2433.9,2433.7,0.41107]
[1728407519731,0.41104,2433.9,2433.8,0.41106]
[1728407519931,0.41104,2433.9,2433.5,3.2078]
[1728407520134,1.02749,2434.2,2433.8,0.41106]
[1728407520328,0.41104,2433.9,2433.8,0.41106]
[1728407520531,3.2078,2434.1,2434.0,0.41103]
[1728407520836,0.41104,2433.9,2433.8,0.41104]
[1728407521335,3.2078,2434.1,2433.5,7.1578]
[1728407521528,0.4064,2434.0,2433.7,0.41107]
[1728407521732,0.41104,2433.9,2433.7,0.41107]
[1728407521931,0.41106,2433.8,2433.7,0.41107]
[1728407522131,0.41106,2433.9,2433.7,0.41107]
[1728407522430,0.4064,2434.0,2433.5,3.2078]
[1728407522631,0.41107,2433.8,2433.7,0.41108]
[1728407522834,0.41107,2433.8,2433.5,3.2078]
[1728407523028,0.41107,2433.8,2433.7,0.41108]
[1728407523223,0.4064,2434.0,2433.5,7.1578]
[1728407523428,0.4064,2434.0,2433.9,0.41104]
[1728407523837,4.03168,2434.3,2434.1,0.411]
[1728407524032,4.03168,2434.3,2433.7,1.0277]
[1728407524033,0.4129,2434.3,2433.7,1.0277]
[1728407524233,0.3908,2434.5,2433.9,1.0276]
[1728407524435,0.3908,2434.5,2434.4,0.41096]
[1728407524739,0.41093,2434.6,2434.1,7.1578]
[1728407524740,3.2078,2434.6,2434.1,7.1578]
[1728407524936,3.2078,2434.6,2434.5,0.41093]
[1728407525137,41.21089,2434.9,2434.6,0.41091]
[1728407525440,0.41089,2434.9,2434.4,0.41096]
[1728407525638,0.41088,2434.9,2434.7,0.4109]
[1728407525848,48.1808,2435.0,2434.7,0.4109]
[1728407526147,0.41088,2434.9,2434.7,0.4109]
[1728407526343,44.0078,2435.0,2434.7,0.4109]
[1728407526532,44.0078,2435.0,2434.6,0.41092]
[1728407526727,0.41089,2434.8,2434.3,1.02745]
[1728407526940,44.0078,2435.0,2434.1,8.60732]
[1728407526941,45.03496,2435.0,2434.1,8.60732]
[1728407527136,1.02724,2434.8,2434.3,0.41097]
[1728407527436,3.2078,2434.4,2434.3,0.41097]
[1728407527640,0.41093,2434.6,2434.4,0.41095]
[1728407527839,0.41093,2434.6,2434.5,0.41094]
[1728407528238,0.41092,2434.6,2434.5,4.51813]
[1728407528939,0.41092,2434.6,2434.5,4.1072]
[1728407529129,0.41092,2434.6,2434.5,4.51814]
[1728407529535,0.41092,2434.6,2434.5,4.1072]
[1728407529742,45.03498,2435.0,2434.4,0.41095]
[1728407529935,0.41096,2434.5,2434.4,0.41095]
[1728407530342,0.41096,2434.5,2434.4,4.51895]
[1728407530539,0.41098,2434.4,2434.3,0.41097]
[1728407530935,1.02733,2434.6,2434.1,7.5798]
[1728407531337,0.41097,2434.4,2434.3,0.41097]
[1728407532744,0.41099,2434.2,2434.1,3.61879]
[1728407533039,1.02743,2434.4,2434.3,0.41096]
[1728407533040,0.41097,2434.4,2434.3,0.41096]
[1728407533941,0.81965,2434.5,2434.4,0.41096]
[1728407535239,0.4087,2434.5,2434.1,7.1578]
[1728407535643,0.81966,2434.5,2434.4,0.41096]
[1728407536350,0.4087,2434.5,2434.4,0.41096]
[1728407536544,0.4087,2434.5,2434.1,8.18532]
[1728407536545,0.4087,2434.5,2434.1,7.1578]
[1728407536747,0.41096,2434.4,2434.1,3.6188]
[1728407536943,0.41097,2434.4,2434.3,0.41097]
[1728407537253,0.41098,2434.3,2434.2,0.41098]
[1728407537443,0.41096,2434.4,2434.3,0.41096]
[1728407537754,0.41098,2434.3,2434.2,0.41098]
[1728407538347,1.02742,2434.4,2434.0,0.7935]
[1728407538545,0.41098,2434.3,2434.2,0.41098]
[1728407543747,0.41101,2434.2,2434.1,0.411]
[1728407543947,1.02746,2434.3,2433.8,3.6196]
[1728407544148,0.41104,2434.0,2433.9,0.41103]
[1728407544354,0.41106,2433.9,2433.8,0.41105]
[1728407544651,0.41108,2433.8,2433.7,0.41106]
[1728407545153,0.41106,2433.9,2433.8,0.41104]
[1728407545547,1.0275,2434.2,2433.8,4.1088]
[1728407545752,0.7943,2434.5,2433.8,4.1088]
[1728407545753,0.4087,2434.5,2433.8,3.2078]
[1728407545952,0.41102,2434.2,2434.1,0.411]
[1728407547051,1.02746,2434.3,2433.8,3.2078]
[1728407547052,0.41104,2433.9,2433.8,3.2078]
[1728407547256,0.41106,2433.8,2433.7,0.41106]
[1728407547656,0.41105,2433.9,2433.8,0.41105]
[1728407547854,0.41106,2433.8,2433.7,0.41107]
[1728407548252,0.41106,2433.9,2433.8,0.41105]
[1728407548559,0.41105,2433.9,2433.8,0.41105]
[1728407550449,1.43863,2434.0,2433.8,0.41105]
[1728407550665,0.41107,2433.8,2433.7,0.41107]
[1728407551255,1.0276,2434.0,2433.6,0.83179]
[1728407551256,0.41108,2433.7,2433.6,0.83179]
[1728407551454,0.41108,2433.7,2433.6,0.41109]
[1728407552457,0.41108,2433.8,2433.7,0.41106]
[1728407552655,0.82856,2433.9,2433.8,0.41106]
[1728407553856,0.82856,2433.9,2433.6,0.41108]
[1728407553857,0.41109,2433.7,2433.6,0.41108]
[1728407555357,0.41109,2433.7,2433.5,3.95]
[1728407555358,0.41107,2433.8,2433.7,0.41106]
[1728407556049,0.4175,2433.9,2433.7,4.1088]
[1728407556253,3.2078,2434.7,2433.8,7.3166]
[1728407556460,3.2078,2434.7,2433.2,1.5891]
[1728407556461,0.41095,2434.6,2434.5,0.41093]
[1728407556658,0.8145,2435.3,2434.5,3.2078]
[1728407556851,1.2317,2435.3,2434.5,4.23516]
[1728407557054,0.41086,2435.0,2434.9,0.41087]
[1728407557268,0.8231,2435.3,2435.0,0.41085]
[1728407557461,0.8231,2435.3,2434.6,0.3957]
[1728407557764,0.41083,2435.2,2435.0,0.41086]
[1728407558255,0.41083,2435.2,2434.6,1.42301]
[1728407558256,0.41085,2435.1,2434.9,0.41087]
[1728407558462,0.41083,2435.2,2435.0,0.41085]
[1728407558668,0.8231,2435.3,2434.6,1.42301]
[1728407558957,0.41083,2435.2,2435.0,0.41085]
[1728407559461,0.4172,2435.3,2434.8,4.23504]
[1728407559656,4.23467,2435.7,2434.9,1.42609]
[1728407559856,0.41075,2435.7,2435.5,0.41077]
[1728407560155,0.41075,2435.7,2435.1,4.23491]
[1728407560156,0.41076,2435.7,2435.4,0.41077]
[1728407560363,0.4106,2435.8,2435.2,0.4173]
[1728407560761,0.4106,2435.8,2435.4,0.41078]
[1728407560762,0.41076,2435.6,2435.4,0.41078]
[1728407561056,0.41078,2435.5,2435.3,0.4108]
[1728407561256,0.41076,2435.6,2435.4,0.41078]
[1728407561559,0.41073,2435.8,2435.6,0.41075]
[1728407561767,0.8213,2436.0,2435.8,0.41071]
[1728407561961,41.6213,2436.0,2435.8,0.41071]
[1728407562155,0.41066,2436.2,2436.0,0.41068]
[1728407562355,4.62238,2436.4,2435.6,4.3509]
[1728407562556,0.41068,2436.1,2435.9,0.4107]
[1728407562764,1.0266,2436.3,2435.6,0.4009]
[1728407562765,41.8266,2436.3,2435.6,0.4009]
[1728407562960,0.41073,2435.8,2435.6,0.81165]
[1728407563155,3.2078,2436.1,2436.0,0.41069]
[1728407563461,40.8,2436.3,2436.0,0.41067]
[1728407563462,41.21064,2436.3,2436.0,0.41067]
[1728407563660,0.79863,2436.4,2436.1,0.41067]
[1728407564055,0.41065,2436.3,2435.9,0.41071]
[1728407564254,0.79863,2436.4,2435.8,0.4211]
[1728407564457,0.388,2436.4,2436.2,0.41064]
[1728407564662,40.8,2436.5,2436.0,3.95]
[1728407564858,40.8,2436.5,2436.3,0.41063]
[1728407565060,0.3888,2436.7,2436.4,0.41062]
[1728407565256,3.5958,2436.9,2436.7,0.41056]
[1728407565459,3.2078,2436.9,2436.7,0.41056]
[1728407565759,3.2078,2436.9,2436.6,3.95]
[1728407565960,7.27860325,2437.3,2436.8,0.41054]
[1728407565961,0.41051,2437.1,2436.8,0.41054]
[1728407566160,1.4473,2437.3,2436.7,4.104]
[1728407566161,0.41049,2437.2,2436.9,0.41053]
[1728407566358,0.41049,2437.2,2436.7,3.2078]
[1728407566559,0.4211,2437.3,2436.7,3.2078]
[1728407566966,0.83158,2437.3,2436.9,4.36054]
[1728407567167,0.41046,2437.4,2437.1,0.41049]
[1728407567558,0.41045,2437.5,2437.2,0.41049]
[1728407567763,0.41045,2437.5,2437.0,3.2078]
[1728407568064,0.41042,2437.6,2437.3,0.41046]
[1728407568262,1.02593,2437.9,2437.4,0.41044]
[1728407568461,0.41041,2437.7,2437.4,0.41045]
[1728407568661,1.02593,2437.9,2437.2,3.95]
[1728407568862,0.41043,2437.6,2437.3,0.41046]
[1728407569168,1.02593,2437.9,2437.2,3.95]
[1728407569169,0.41045,2437.4,2437.2,3.95]
[1728407569360,0.41046,2437.4,2437.2,3.95]
[1728407569565,0.41053,2437.0,2436.7,3.61836]
[1728407569763,0.41052,2437.1,2436.8,0.41054]
[1728407569964,3.2078,2437.3,2436.7,3.2078]
[1728407570167,0.41049,2437.2,2436.9,0.41053]
[1728407570371,0.41049,2437.2,2437.0,0.41052]
[1728407570572,0.41049,2437.2,2436.8,3.95]
[1728407570873,0.41049,2437.2,2437.0,0.41052]
[1728407571073,0.3895,2437.4,2436.8,3.95]
[1728407571276,0.4105,2437.2,2436.9,0.41053]
[1728407571864,0.4105,2437.1,2436.9,0.41053]
[1728407572170,0.4105,2437.2,2436.9,0.41053]
[1728407572373,0.41051,2437.1,2436.8,3.95]
[1728407572572,0.41051,2437.1,2436.8,4.36055]
[1728407572967,0.41051,2437.1,2436.8,3.95]
[1728407573168,0.4105,2437.2,2436.9,0.41053]
[1728407573474,0.4105,2437.1,2436.9,0.41053]
[1728407573669,0.4105,2437.1,2436.8,4.36054]
[1728407574169,1.02618,2437.3,2436.8,4.36054]
[1728407574373,0.41051,2437.1,2436.8,4.36054]
[1728407574671,0.41053,2437.0,2436.8,3.95]
[1728407574974,0.41053,2437.0,2436.8,4.36055]
[1728407577065,0.41054,2436.9,2436.8,3.95]
[1728407577268,0.41055,2436.8,2436.7,3.2078]
[1728407577475,0.41059,2436.6,2436.5,0.413]
[1728407577771,0.41062,2436.4,2436.3,0.4095]
[1728407578972,0.41062,2436.4,2436.3,0.82014]
[1728407579370,0.41062,2436.4,2436.3,0.4095]
[1728407579780,0.41062,2436.4,2436.1,3.2078]
[1728407579781,4.1048,2436.4,2436.1,3.2078]
[1728407579969,0.41066,2436.2,2436.1,3.2078]
[1728407580170,0.41066,2436.2,2436.1,3.61847]
[1728407580369,0.41066,2436.2,2435.8,0.8021]
[1728407580574,0.4107,2436.0,2435.9,0.41069]
[1728407580880,0.4107,2436.0,2435.9,4.36069]
[1728407581066,0.4107,2436.0,2435.9,8.46549]
[1728407581473,1.02653,2436.5,2435.9,8.46549]
[1728407581474,1.02653,2436.5,2435.9,8.0548]
[1728407581774,0.41062,2436.5,2436.4,0.41062]
[1728407581975,4.23421,2436.8,2436.0,3.2078]
[1728407582178,1.02648,2436.6,2436.0,3.2078]
[1728407582472,1.02648,2436.6,2436.0,4.23451]
[1728407582669,0.41062,2436.5,2436.4,0.41062]
[1728407583682,0.4106,2436.6,2436.4,0.41062]
[1728407584271,0.4106,2436.6,2436.3,7.1578]
[1728407584272,0.41055,2436.9,2436.5,3.95]
[1728407584472,4.559,2437.5,2436.6,3.2078]
[1728407584473,3.2078,2437.4,2436.6,3.2078]
[1728407584781,1.02623,2437.2,2436.6,3.2078]
[1728407584971,0.4105,2437.2,2437.0,0.41051]
[1728407585373,4.62847,2437.4,2436.8,3.95]
[1728407585572,0.4105,2437.2,2437.0,0.41052]
[1728407586180,4.62847,2437.4,2436.8,3.95]
[1728407586181,3.6023,2437.4,2436.8,3.95]
[1728407586382,3.6023,2437.4,2437.1,0.4105]
[1728407586383,0.41047,2437.3,2437.1,0.4105]
[1728407586576,6.0118,2437.8,2437.0,3.2078]
[1728407586577,3.2078,2437.8,2437.0,3.2078]
[1728407586777,0.41048,2437.3,2437.1,0.82819]
[1728407586974,0.41046,2437.4,2437.2,0.41048]
[1728407587291,45.0338,2437.8,2437.3,3.2078]
[1728407587292,44.0078,2437.8,2437.3,3.2078]
[1728407587673,44.0078,2437.8,2437.3,3.61826]
[1728407587674,0.41045,2437.5,2437.3,3.61826]
[1728407587983,0.41045,2437.4,2437.3,3.2078]
[1728407588183,0.41045,2437.4,2437.3,0.41047]
[1728407588378,0.41045,2437.4,2437.2,3.2078]
[1728407588685,0.41047,2437.3,2437.2,3.61829]
[1728407588879,0.41046,2437.4,2437.3,0.41047]
[1728407589680,0.41044,2437.5,2437.3,0.41047]
[1728407590186,0.41044,2437.5,2437.2,3.2078]
[1728407590187,4.23379,2437.8,2437.2,3.2078]
[1728407590382,4.23379,2437.8,2437.2,3.61828]
[1728407590383,0.41047,2437.4,2437.2,3.61828]
[1728407590582,0.41048,2437.3,2437.1,0.8282]
[1728407590785,0.41048,2437.3,2437.2,3.2078]
[1728407591082,0.41047,2437.3,2437.2,7.311]
[1728407591283,0.41046,2437.4,2437.2,7.72147]
[1728407591482,0.41047,2437.3,2437.2,3.2078]
[1728407592186,1.02612,2437.5,2436.7,3.2078]
[1728407592187,3.2078,2437.5,2436.7,3.2078]
[1728407592392,0.4225,2437.2,2436.7,3.2078]
[1728407592584,0.4111,2437.4,2436.7,3.2078]
[1728407592782,0.41049,2437.2,2437.1,0.4105]
[1728407592982,1.02614,2437.5,2437.1,0.4105]
[1728407593184,1.02614,2437.5,2437.0,3.2078]
[1728407593386,0.41047,2437.3,2437.1,0.41049]
[1728407593688,0.41047,2437.3,2437.0,3.2078]
[1728407593689,1.02614,2437.5,2437.0,3.2078]
[1728407593894,1.02614,2437.5,2437.1,0.41049]
[1728407593895,0.41048,2437.3,2437.1,0.41049]
[1728407594087,0.4105,2437.2,2437.0,3.61831]
[1728407594796,0.4105,2437.1,2437.0,3.61831]
[1728407594987,1.02618,2437.3,2437.0,3.2078]
[1728407595186,0.4105,2437.2,2437.0,3.2078]
[1728407595384,0.4105,2437.2,2437.0,3.61831]
[1728407595588,4.23391,2437.5,2437.0,3.2078]
[1728407595991,0.41046,2437.4,2437.0,3.2078]
[1728407596191,0.41047,2437.4,2437.2,0.41048]
[1728407596495,0.41047,2437.4,2437.2,3.61048]
[1728407596692,3.2078,2437.5,2437.2,3.61048]
[1728407596890,0.41047,2437.3,2437.2,3.61048]
[1728407597189,0.41046,2437.4,2437.2,3.61048]
[1728407597592,3.2078,2437.5,2437.2,3.61048]
[1728407597888,3.2078,2437.5,2437.2,3.2]
[1728407598090,40.8,2437.6,2437.4,0.41044]
[1728407598292,0.4111,2437.7,2437.4,0.41044]
[1728407598491,0.4205,2437.8,2437.4,3.61044]
[1728407598792,40.8,2438.0,2437.6,3.2]
[1728407598997,0.41036,2438.0,2437.6,3.2]
[1728407599187,0.41036,2438.0,2437.8,0.41037]
[1728407599383,0.41034,2438.1,2437.8,3.2]
[1728407599588,0.41035,2438.0,2437.9,0.41037]
[1728407600091,0.417,2438.2,2437.8,3.2]
[1728407600290,0.41037,2437.9,2437.8,3.2]
[1728407600485,0.41037,2437.9,2437.7,0.41039]
[1728407600685,0.41037,2437.9,2437.8,0.41039]
[1728407600887,1.02585,2438.1,2437.7,0.4104]
[1728407601087,0.41038,2437.9,2437.7,0.4104]
[1728407601285,0.41039,2437.8,2437.7,0.4104]
[1728407601491,1.02585,2438.1,2437.4,7.1478]
[1728407601697,0.41039,2437.8,2437.7,0.4104]
[1728407602198,0.417,2438.2,2437.4,8.17393]
[1728407602499,0.41037,2437.9,2437.8,0.41038]
[1728407602890,1.02585,2438.1,2437.4,8.17393]
[1728407603091,0.41038,2437.9,2437.8,0.41039]
[1728407603286,0.41038,2437.9,2437.4,8.17393]
[1728407603492,0.41038,2437.9,2437.8,0.41039]
[1728407603683,0.41038,2437.9,2437.4,8.17393]
[1728407603886,0.417,2438.2,2438.1,0.41034]
[1728407604093,0.82733,2438.2,2438.1,0.41034]
[1728407604286,0.41031,2438.3,2438.2,0.41031]
[1728407604589,3.5927,2438.6,2438.3,0.41029]
[1728407604590,0.41029,2438.4,2438.3,0.41029]
[1728407604793,3.2078,2438.9,2438.3,3.2078]
[1728407605097,0.41026,2438.6,2438.4,0.41028]
[1728407605597,3.2078,2438.9,2438.3,7.1478]
[1728407605799,0.41029,2438.4,2438.2,0.41031]
[1728407606494,0.41029,2438.4,2438.3,0.4103]
[1728407607290,0.41026,2438.6,2438.5,0.41027]
[1728407607494,0.41024,2438.7,2438.6,0.41025]
[1728407607891,0.41023,2438.8,2438.6,0.41025]
[1728407608091,4.23331,2438.9,2438.6,0.41025]
[1728407608396,4.23331,2438.9,2438.3,1.02575]
[1728407608397,3.2078,2438.9,2438.3,1.02575]
[1728407608592,0.41024,2438.7,2438.6,0.41025]
[1728407608794,4.23332,2438.9,2438.4,0.41027]
[1728407608998,0.41025,2438.6,2438.5,0.41026]
[1728407609193,3.2078,2438.9,2438.2,1.4376]
[1728407609398,0.3946,2439.0,2438.9,0.4102]
[1728407609605,0.41018,2439.1,2438.9,0.4102]
[1728407609806,0.41019,2439.0,2438.8,0.41021]
[1728407610403,0.41017,2439.1,2438.8,0.4102]
[1728407610599,0.3864,2439.2,2438.7,4.7485]
[1728407610899,0.41012,2439.4,2439.1,0.41017]
[1728407611194,11.05798,2439.7,2438.8,4.23334]
[1728407611195,0.4133,2439.6,2438.8,4.23334]
[1728407611400,0.4133,2439.6,2439.3,0.41013]
[1728407611401,0.41011,2439.5,2439.3,0.41013]
[1728407612493,41.2133,2439.6,2439.3,0.41013]
[1728407612801,0.8234,2439.6,2439.4,0.41011]
[1728407613097,4.9773,2440.0,2439.8,0.41004]
[1728407613098,3.61783,2440.0,2439.8,0.41004]
[1728407613297,41.21003,2440.0,2439.8,0.41004]
[1728407613492,0.41002,2440.0,2439.8,0.41004]
[1728407613794,1.02499,2440.2,2439.6,0.41007]
[1728407613795,0.41005,2439.8,2439.6,0.41007]
[1728407614099,0.41006,2439.8,2439.6,0.41007]
[1728407614500,0.41004,2439.9,2439.6,0.41007]
[1728407614696,1.025,2440.1,2439.5,4.3786]
[1728407615000,0.41005,2439.9,2439.7,0.41007]
[1728407615196,0.41002,2440.0,2439.8,0.41004]
[1728407615397,44.0078,2440.2,2439.5,5.40385]
[1728407615591,0.8147,2440.5,2439.6,3.94]
[1728407615895,0.40997,2440.3,2440.1,0.40999]
[1728407616199,0.40999,2440.2,2440.0,0.41]
[1728407616504,40.8,2440.4,2439.6,4.9652]
[1728407616809,0.40997,2440.3,2440.1,0.40999]
[1728407617101,0.40996,2440.4,2440.2,0.80988]
[1728407617311,0.40995,2440.5,2440.2,0.80987]
[1728407617493,0.4041,2440.7,2440.2,0.3999]
[1728407617691,0.40992,2440.6,2440.4,0.40994]
[1728407617894,0.4041,2440.7,2440.2,0.3999]
[1728407618090,0.40993,2440.6,2440.3,0.40995]
[1728407618298,0.40995,2440.4,2440.2,0.80987]
[1728407618501,1.42887,2440.7,2440.2,0.80987]
[1728407618702,0.40994,2440.5,2440.3,0.40996]
[1728407618999,0.4041,2440.7,2440.2,0.3999]
[1728407619205,0.4041,2440.7,2440.2,7.5477]
[1728407619404,0.4041,2440.7,2440.3,0.40996]
[1728407619796,3.2078,2440.8,2440.4,4.0976]
[1728407620001,0.40989,2440.8,2440.6,0.40991]
[1728407620198,3.2078,2441.1,2440.2,7.5477]
[1728407620403,0.40992,2440.6,2440.4,0.40994]
[1728407620701,0.4099,2440.7,2440.5,0.40992]
[1728407620907,0.4099,2440.7,2440.2,7.5477]
[1728407620908,3.61769,2440.8,2440.6,0.40991]
[1728407621099,3.2078,2440.8,2440.2,8.57265]
[1728407621299,3.2078,2440.8,2440.5,0.40992]
[1728407621504,0.4099,2440.7,2440.4,0.40994]
[1728407621699,0.40997,2440.3,2440.2,3.6077]
[1728407621905,0.40995,2440.4,2440.2,4.01768]
[1728407622211,41.20992,2440.6,2440.4,0.40994]
[1728407622407,0.40994,2440.5,2440.3,0.40995]
[1728407622905,0.40994,2440.5,2440.3,3.60995]
[1728407623096,41.20992,2440.6,2440.4,0.40993]
[1728407623504,0.40992,2440.6,2440.4,0.40993]
[1728407623703,4.23253,2440.8,2440.4,0.40993]
[1728407624003,4.23253,2440.8,2440.5,3.2]
[1728407624004,40.8,2440.7,2440.5,3.2]
[1728407624209,3.2078,2440.8,2440.6,0.40991]
[1728407624403,3.61768,2440.8,2440.6,0.40991]
[1728407624805,3.2078,2440.8,2440.5,3.2]
[1728407625106,3.61768,2440.8,2440.6,0.4099]
[1728407625308,3.2078,2441.1,2440.7,3.2]
[1728407625505,3.2,2441.6,2440.7,3.2]
[1728407625506,1.02456,2441.2,2440.7,3.2]
[1728407625705,0.40984,2441.1,2440.9,0.40986]
[1728407625899,0.40983,2441.1,2440.9,0.40986]
[1728407626100,3.2078,2441.4,2440.9,3.2]
[1728407626296,0.40981,2441.2,2441.1,3.2]
[1728407626495,0.40981,2441.2,2440.9,3.2078]
[1728407626496,1.02446,2441.4,2440.9,7.1478]
[1728407626703,3.2078,2441.5,2441.0,0.40984]
[1728407626704,0.40983,2441.2,2441.0,0.40984]
[1728407626902,3.6126,2441.5,2440.9,3.2078]